lending/lending_fUSD_20241229
["ID","MTS","AMOUNT","RATE_DAILY","PERIOD"]
[347046638,1735482665054,-3916.9412594,0.000129,2]
[347046639,1735482665067,-1130.06,0.00012917,2]
[347046640,1735482665078,-643.62,0.00012917,2]
[347046641,1735482665090,-500.0,0.00012917,2]
[347046642,1735482665101,-500.0,0.00012917,2]
[347046643,1735482665114,-2539.39,0.00012917,2]
[347046644,1735482665125,-1196.33,0.00012917,2]
[347046645,1735482665137,-685.5,0.00012917,2]
[347046646,1735482665149,-2186.0,0.00012917,2]
[347046647,1735482665161,-7807.75,0.00012918,2]
[347046648,1735482665173,-1656.0,0.00012918,2]
[347046649,1735482665184,-3446.42,0.00012918,2]
[347046650,1735482665196,-6680.76,0.00012918,2]
[347046651,1735482665207,-2717.63,0.00012918,2]
[347046652,1735482665218,-6905.71,0.00012918,2]
[347046653,1735482665231,-1165.68,0.00012918,2]
[347046654,1735482665242,-1000.0,0.0001293,2]
[347046655,1735482665254,-208.604514,0.00012957,2]
[347046656,1735482665266,-151.0,0.00012972,2]
[347046657,1735482665278,-151.0,0.00012972,2]
[347046658,1735482665616,-151.0,0.00012972,2]
[347046659,1735482665627,-151.0,0.00012972,2]
[347046660,1735482665637,-151.0,0.00012972,2]
[347046661,1735482665648,-151.0,0.00012972,2]
[347046662,1735482665657,-500.0,0.00012972,2]
[347046663,1735482665667,-2809.94,0.00012972,2]
[347046664,1735482665677,-151.0,0.00012972,2]
[347046665,1735482665686,-151.0,0.00012972,2]
[347046666,1735482665695,-2447.16,0.00012972,2]
[347046667,1735482665705,-1701.23,0.00012972,2]
[347046668,1735482665715,-151.0,0.00012972,2]
[347046669,1735482665725,-500.0,0.00012972,2]
[347046670,1735482665735,-157.461372,0.00012972,2]
[347046671,1735482665744,-151.0,0.00012972,2]
[347046672,1735482665754,-151.0,0.00012972,2]
[347046673,1735482665763,-346.466522,0.00012972,2]
[347046674,1735482665773,-2501.58,0.00012972,2]
[347046675,1735482665783,-346.466522,0.00012972,2]
[347046676,1735482665793,-151.0,0.00012972,2]
[347046677,1735482665802,-522.14,0.00012972,2]
[347046678,1735482665812,-1767.0,0.00012972,2]
[347046679,1735482665822,-1137.37,0.00012972,2]
[347046680,1735482665833,-151.0,0.00012972,2]
[347046681,1735482665842,-500.0,0.00012972,2]
[347046682,1735482665852,-500.0,0.00012972,2]
[347046683,1735482665862,-4204.15,0.00012972,2]
[347046684,1735482665872,-1179.19,0.00012972,2]
[347046685,1735482665881,-1638.22,0.00012972,2]
[347046686,1735482665891,-424.260274,0.00012972,2]
[347046687,1735482665901,-424.260274,0.00012972,2]
[347046688,1735482665911,-1595.42,0.00012972,2]
[347046689,1735482665921,-151.0,0.00012972,2]
[347046690,1735482665931,-1126.24,0.00012972,2]
[347046691,1735482665941,-2304.78,0.00012972,2]
[347046692,1735482665951,-151.0,0.00012972,2]
[347046693,1735482665960,-500.0,0.00012972,2]
[347046694,1735482665970,-2376.38,0.00012972,2]
[347046695,1735482665979,-2519.67,0.00012972,2]
[347046696,1735482665990,-1046.72,0.00012972,2]
[347046697,1735482666003,-151.0,0.00012972,2]
[347046698,1735482666013,-1056.71,0.00012972,2]
[347046699,1735482666023,-500.0,0.00012972,2]
[347046700,1735482666033,-151.0,0.00012972,2]
[347046701,1735482666050,-500.0,0.00012972,2]
[347046702,1735482666059,-1139.66,0.00012972,2]
[347046703,1735482666068,-4055.53,0.00012972,2]
[347046704,1735482666078,-2280.97,0.00012972,2]
[347046705,1735482666087,-971.31,0.00012972,2]
[347046706,1735482666097,-500.0,0.00012972,2]
[347046707,1735482666107,-1072.29,0.00012972,2]
[347046708,1735482666116,-2212.82,0.00012972,2]
[347046709,1735482666125,-417.419845,0.00012972,2]
[347046710,1735482666135,-941.08,0.00012972,2]
[347046711,1735482666145,-417.419845,0.00012972,2]
[347046712,1735482666155,-500.0,0.00012972,2]
[347046713,1735482666164,-656.29,0.00012972,2]
[347046714,1735482666174,-1765.76,0.00012972,2]
[347046715,1735482666184,-500.0,0.00012972,2]
[347046716,1735482666193,-151.0,0.00012972,2]
[347046717,1735482666203,-500.0,0.00012972,2]
[347046718,1735482666213,-500.0,0.00012972,2]
[347046719,1735482666223,-944.16,0.00012972,2]
[347046720,1735482666233,-151.0,0.00012972,2]
[347046721,1735482666243,-151.0,0.00012972,2]
[347046722,1735482666253,-151.0,0.00012972,2]
[347046723,1735482666262,-155.045354,0.00012972,2]
[347046724,1735482666272,-1071.23,0.00012972,2]
[347046725,1735482666282,-155.045354,0.00012972,2]
[347046726,1735482666292,-500.0,0.00012972,2]
[347046727,1735482666302,-1063.75,0.00012972,2]
[347046728,1735482666311,-2876.16,0.00012972,2]
[347046729,1735482666321,-500.0,0.00012972,2]
[347046730,1735482666331,-151.0,0.00012972,2]
[347046731,1735482666341,-151.0,0.00012972,2]
[347046732,1735482666351,-500.0,0.00012972,2]
[347046733,1735482666361,-1376.3,0.00012972,2]
[347046734,1735482666371,-1031.44,0.00012972,2]
[347046735,1735482666380,-895.86,0.00012972,2]
[347046736,1735482666390,-4232.94,0.00012972,2]
[347046737,1735482666400,-1416.9,0.00012972,2]
[347046738,1735482666410,-1337.8,0.00012972,2]
[347046739,1735482666421,-151.0,0.00012972,2]
[347046740,1735482666431,-1122.12,0.00012972,2]
[347046741,1735482666441,-2064.37,0.00012972,2]
[347046742,1735482666451,-500.0,0.00012972,2]
[347046743,1735482666460,-2905.07,0.00012972,2]
[347046744,1735482666470,-151.299305,0.00012972,2]
[347046745,1735482666480,-151.642326,0.00012972,2]
[347046746,1735482666490,-151.0,0.00012972,2]
[347046747,1735482666500,-151.0,0.00012972,2]
[347046748,1735482666511,-500.0,0.00012972,2]
[347046749,1735482666521,-1234.95,0.00012972,2]
[347046750,1735482666532,-500.0,0.00012972,2]
[347046751,1735482666542,-222.01318,0.00012972,2]
[347046752,1735482666552,-500.0,0.00012972,2]
[347046753,1735482666562,-222.01318,0.00012972,2]
[347046754,1735482666572,-500.0,0.00012972,2]
[347046755,1735482666582,-1153.87,0.00012972,2]
[347046756,1735482666592,-2039.44,0.00012972,2]
[347046757,1735482666602,-925.15,0.00012972,2]
[347046758,1735482666611,-7109.25,0.00012972,2]
[347046759,1735482666621,-151.0,0.00012972,2]
[347046760,1735482666631,-683.192884,0.00012972,2]
[347046761,1735482666641,-151.0,0.00012972,2]
[347046762,1735482666650,-683.192884,0.00012972,2]
[347046763,1735482666660,-500.0,0.00012972,2]
[347046764,1735482666669,-1814.77,0.00012972,2]
[347046765,1735482666680,-12788.55,0.00012972,2]
[347046766,1735482666691,-1193.71,0.00012972,2]
[347046767,1735482666700,-500.0,0.00012972,2]
[347046768,1735482666710,-1367.75,0.00012972,2]
[347046769,1735482666720,-3987.61,0.00012972,2]
[347046770,1735482666730,-643.12,0.00012972,2]
[347046771,1735482666740,-1060.8,0.00012972,2]
[347046772,1735482666750,-305.946151,0.00012972,2]
[347046773,1735482666760,-1342.87,0.00012972,2]
[347046774,1735482666770,-305.946151,0.00012972,2]
[347046775,1735482666779,-1614.85,0.00012972,2]
[347046776,1735482666790,-16460.32,0.00012972,2]
[347046777,1735482666799,-500.0,0.00012972,2]
[347046778,1735482666809,-1163.14,0.00012972,2]
[347046779,1735482666819,-994.3,0.00012972,2]
[347046780,1735482666831,-12350.89,0.00012972,2]
[347046781,1735482666841,-1055.91,0.00012972,2]
[347046782,1735482666851,-2224.62,0.00012972,2]
[347046783,1735482666862,-3169.18,0.00012972,2]
[347046784,1735482666873,-500.0,0.00012972,2]
[347046785,1735482666883,-1341.35,0.00012972,2]
[347046786,1735482666893,-1370.75,0.00012972,2]
[347046787,1735482666904,-1043.98,0.00012972,2]
[347046788,1735482666915,-839.48,0.00012972,2]
[347046789,1735482666924,-2482.04,0.00012972,2]
[347046790,1735482666934,-892.24,0.00012972,2]
[347046791,1735482666944,-882.03,0.00012972,2]
[347046792,1735482666954,-2254.91,0.00012972,2]
[347046793,1735482666965,-1393.93,0.00012972,2]
[347046794,1735482666974,-2019.83,0.00012972,2]
[347046795,1735482666984,-3040.14,0.00012972,2]
[347046796,1735482666994,-901.62,0.00012972,2]
[347046797,1735482667019,-500.0,0.00012972,2]
[347046798,1735482667028,-3754.15,0.00012972,2]
[347046799,1735482667038,-500.0,0.00012972,2]
[347046800,1735482667047,-632.02,0.00012972,2]
[347046801,1735482667056,-1092.4,0.00012972,2]
[347046802,1735482667065,-847.75,0.00012972,2]
[347046803,1735482667075,-500.0,0.00012972,2]
[347046804,1735482667084,-500.0,0.00012973,2]
[347046805,1735482667093,-500.0,0.00012973,2]
[347046806,1735482667103,-500.0,0.00012973,2]
[347046807,1735482667113,-606.96380816,0.00012973,2]
[347046808,1735482667123,-503.41434408,0.00012973,2]
[347046809,1735482667133,-500.0,0.00012973,2]
[347046810,1735482667143,-500.0,0.00012973,2]
[347046811,1735482667153,-500.0,0.00012973,2]
[347046812,1735482667163,-500.0,0.00012973,2]
[347046813,1735482667172,-335.167647,0.00012973,2]
[347046814,1735482667182,-500.0,0.00012973,2]
[347046815,1735482667191,-500.0,0.00012973,2]
[347046816,1735482667201,-500.0,0.00012973,2]
[347046817,1735482667211,-500.0,0.00012973,2]
[347046818,1735482667220,-500.0,0.00012973,2]
[347046819,1735482667230,-637.12,0.00012973,2]
[347046820,1735482667240,-327.66849887,0.00012973,2]
[347046821,1735482667249,-500.0,0.00012973,2]
[347046822,1735482667259,-500.0,0.00012973,2]
[347046823,1735482667269,-1000.0,0.00012973,2]
[347046824,1735482667279,-500.0,0.00012973,2]
[347046825,1735482667289,-500.0,0.00012973,2]
[347046826,1735482667299,-500.0,0.00012973,2]
[347046827,1735482667308,-500.0,0.00012973,2]
[347046828,1735482667318,-500.0,0.00012973,2]
[347046829,1735482667328,-500.0,0.00012973,2]
[347046830,1735482667338,-500.0,0.00012973,2]
[347046831,1735482667348,-500.0,0.00012973,2]
[347046832,1735482667357,-500.0,0.00012973,2]
[347046833,1735482667367,-500.0,0.00012973,2]
[347046834,1735482667376,-500.0,0.00012973,2]
[347046835,1735482667386,-500.0,0.00012973,2]
[347046836,1735482667396,-500.0,0.00012973,2]
[347046837,1735482667405,-580.31,0.00012973,2]
[347046838,1735482667415,-500.0,0.00012973,2]
[347046839,1735482667425,-500.0,0.00012973,2]
[347046840,1735482667434,-500.0,0.00012973,2]
[347046841,1735482667444,-500.0,0.00012973,2]
[347046842,1735482667453,-500.0,0.00012973,2]
[347046843,1735482667463,-1014.5,0.00012973,2]
[347046844,1735482667472,-500.0,0.00012973,2]
[347046845,1735482667482,-500.0,0.00012973,2]
[347046846,1735482667491,-500.0,0.00012973,2]
[347046847,1735482667501,-500.0,0.00012973,2]
[347046848,1735482667517,-500.0,0.00012973,2]
[347046849,1735482667533,-500.0,0.00012973,2]
[347046850,1735482667543,-500.0,0.00012973,2]
[347046851,1735482667552,-500.0,0.00012973,2]
[347046852,1735482667562,-500.0,0.00012973,2]
[347046853,1735482667571,-500.0,0.00012973,2]
[347046854,1735482667580,-500.0,0.00012973,2]
[347046855,1735482667589,-500.0,0.00012973,2]
[347046856,1735482667598,-500.0,0.00012973,2]
[347046857,1735482667607,-500.0,0.00012973,2]
[347046858,1735482667616,-500.0,0.00012973,2]
[347046859,1735482667626,-521.14853747,0.00012973,2]
[347046860,1735482667636,-1195.12,0.00012973,2]
[347046861,1735482667645,-500.0,0.00012973,2]
[347046862,1735482667655,-500.0,0.00012973,2]
[347046863,1735482667664,-500.0,0.00012973,2]
[347046864,1735482667674,-500.0,0.00012973,2]
[347046865,1735482667684,-500.0,0.00012973,2]
[347046866,1735482667694,-500.0,0.00012973,7]
[347046867,1735482667704,-500.0,0.00012973,2]
[347046868,1735482667715,-500.0,0.00012973,2]
[347046869,1735482667724,-500.0,0.00012973,2]
[347046870,1735482667734,-500.0,0.00012973,2]
[347046871,1735482667743,-500.0,0.00012973,2]
[347046872,1735482667752,-500.0,0.00012973,2]
[347046873,1735482667770,-812.75,0.00012973,2]
[347046874,1735482667780,-305.4957232,0.00012973,2]
[347046875,1735482667791,-500.0,0.00012973,2]
[347046876,1735482667801,-500.0,0.00012973,2]
[347046877,1735482667813,-846.87,0.00012973,2]
[347046878,1735482667823,-964.63,0.00012973,2]
[347046879,1735482667834,-500.0,0.00012973,2]
[347046880,1735482667843,-933.32,0.00012973,2]
[347046881,1735482667853,-500.0,0.00012973,2]
[347046882,1735482667863,-500.0,0.00012973,2]
[347046883,1735482667873,-500.0,0.00012973,2]
[347046884,1735482667882,-689.89,0.00012973,2]
[347046885,1735482667892,-500.0,0.00012973,2]
[347046886,1735482667905,-500.0,0.00012973,2]
[347046887,1735482667915,-500.0,0.00012973,2]
[347046888,1735482667925,-500.0,0.00012973,2]
[347046889,1735482667935,-500.0,0.00012973,2]
[347046890,1735482667949,-500.0,0.00012973,2]
[347046891,1735482667958,-500.0,0.00012973,2]
[347046892,1735482667969,-500.0,0.00012973,2]
[347046893,1735482667979,-555.39,0.00012973,2]
[347046894,1735482667989,-1287.88,0.00012973,2]
[347046895,1735482667998,-500.0,0.00012973,2]
[347046896,1735482668007,-1888.27,0.00012973,2]
[347046897,1735482668024,-633.32,0.00012973,2]
[347046898,1735482668033,-1207.65,0.00012973,2]
[347046899,1735482668043,-500.0,0.00012973,2]
[347046900,1735482668119,-500.0,0.00012973,2]
[347046901,1735482668128,-1380.1,0.00012973,2]
[347046902,1735482668137,-500.0,0.00012973,2]
[347046903,1735482668147,-500.0,0.00012973,2]
[347046904,1735482668155,-500.0,0.00012973,2]
[347046905,1735482668166,-500.0,0.00012973,2]
[347046906,1735482668176,-1008.2,0.00012973,2]
[347046907,1735482668185,-500.0,0.00012973,2]
[347046908,1735482668195,-2700.65,0.00012973,2]
[347046909,1735482668204,-500.0,0.00012973,2]
[347046910,1735482668214,-511.74,0.00012973,2]
[347046911,1735482668223,-761.14,0.00012973,2]
[347046912,1735482668232,-2037.87,0.00012973,2]
[347046913,1735482668242,-500.0,0.00012973,2]
[347046914,1735482668252,-500.0,0.00012973,2]
[347046915,1735482668265,-500.0,0.00012973,2]
[347046916,1735482668274,-500.0,0.00012973,2]
[347046917,1735482668285,-2844.96,0.00012973,2]
[347046918,1735482668294,-500.0,0.00012973,2]
[347046919,1735482668304,-2637.02,0.00012973,2]
[347046920,1735482668314,-500.0,0.00012973,2]
[347046921,1735482668324,-508.47,0.00012973,2]
[347046922,1735482668333,-508.83,0.00012973,2]
[347046923,1735482668343,-630.15,0.00012973,2]
[347046924,1735482668353,-500.0,0.00012973,2]
[347046925,1735482668363,-360.95256295,0.00012973,2]
[347046926,1735482668372,-500.0,0.00012973,2]
[347046927,1735482668382,-680.73,0.00012973,2]
[347046928,1735482668391,-500.0,0.00012973,2]
[347046929,1735482668401,-500.0,0.00012973,2]
[347046930,1735482668410,-500.0,0.00012973,2]
[347046931,1735482668420,-500.0,0.00012973,2]
[347046932,1735482668429,-789.04,0.00012973,2]
[347046933,1735482668440,-500.0,0.00012973,2]
[347046934,1735482668450,-975.87,0.00012973,2]
[347046935,1735482668460,-500.0,0.00012973,2]
[347046936,1735482668470,-500.0,0.00012973,2]
[347046937,1735482668479,-1047.26,0.00012973,2]
[347046938,1735482668488,-500.0,0.00012973,2]
[347046939,1735482668498,-500.0,0.00012973,2]
[347046940,1735482668507,-500.0,0.00012973,2]
[347046941,1735482668517,-500.0,0.00012973,2]
[347046942,1735482668528,-500.0,0.00012973,2]
[347046943,1735482668538,-1591.37,0.00012973,2]
[347046944,1735482668547,-604.13,0.00012973,2]
[347046945,1735482668557,-500.0,0.00012973,2]
[347046946,1735482668566,-500.0,0.00012973,2]
[347046947,1735482668576,-500.0,0.00012973,2]
[347046948,1735482668586,-1156.0,0.00012973,2]
[347046949,1735482668595,-826.81,0.00012973,2]
[347046950,1735482668604,-500.0,0.00012973,2]
[347046951,1735482668614,-899.46,0.00012973,2]
[347046952,1735482668623,-500.0,0.00012973,2]
[347046953,1735482668633,-500.0,0.00012973,2]
[347046954,1735482668643,-500.0,0.00012973,2]
[347046955,1735482668653,-671.82,0.00012973,2]
[347046956,1735482668662,-587.6,0.00012973,2]
[347046957,1735482668671,-407.55752286,0.00012973,2]
[347046958,1735482668681,-2002.42,0.00012973,2]
[347046959,1735482668691,-500.0,0.00012973,2]
[347046960,1735482668701,-848.84,0.00012973,2]
[347046961,1735482668710,-642.03,0.00012973,2]
[347046962,1735482668720,-500.0,0.00012973,2]
[347046963,1735482668730,-1456.37,0.00012973,2]
[347046964,1735482668740,-500.0,0.00012973,2]
[347046965,1735482668750,-1234.19,0.00012973,2]
[347046966,1735482668760,-500.0,0.00012973,2]
[347046967,1735482668769,-500.0,0.00012973,2]
[347046968,1735482668778,-500.0,0.00012973,2]
[347046969,1735482668788,-1201.41,0.00012973,2]
[347046970,1735482668797,-500.0,0.00012973,2]
[347046971,1735482668807,-500.0,0.00012973,2]
[347046972,1735482668817,-2029.83,0.00012973,2]
[347046973,1735482668826,-1028.65,0.00012973,2]
[347046974,1735482668836,-500.0,0.00012973,2]
[347046975,1735482668846,-500.0,0.00012973,2]
[347046976,1735482668855,-500.0,0.00012973,2]
[347046977,1735482668864,-728.39,0.00012973,2]
[347046978,1735482668874,-1667.6,0.00012973,2]
[347046979,1735482668884,-500.0,0.00012973,2]
[347046980,1735482668899,-500.0,0.00012973,2]
[347046981,1735482668908,-1349.02,0.00012973,2]
[347046982,1735482668918,-868.8,0.00012973,2]
[347046983,1735482668927,-1472.31,0.00012973,2]
[347046984,1735482668937,-500.0,0.00012973,2]
[347046985,1735482668946,-872.53,0.00012973,2]
[347046986,1735482668955,-500.0,0.00012973,2]
[347046987,1735482668964,-841.83,0.00012973,2]
[347046988,1735482668974,-500.0,0.00012973,2]
[347046989,1735482668984,-150.0,0.00012973,2]
[347046990,1735482668994,-2231.13,0.00012973,2]
[347046991,1735482669004,-500.0,0.00012973,2]
[347046992,1735482669014,-5000.0,0.00012973,2]
[347046993,1735482669024,-1136.05,0.00012973,2]
[347046994,1735482669033,-802.03,0.00012973,2]
[347046995,1735482669042,-500.0,0.00012973,2]
[347046996,1735482669051,-500.0,0.00012973,2]
[347046997,1735482669061,-500.0,0.00012973,2]
[347046998,1735482669072,-689.42,0.00012973,2]
[347046999,1735482669081,-4383.38,0.00012973,2]
[347047000,1735482669090,-1544.41,0.00012973,2]
[347047001,1735482669101,-626.16,0.00012973,2]
[347047002,1735482669110,-2477.41,0.00012973,2]
[347047003,1735482669120,-500.0,0.00012973,2]
[347047004,1735482669129,-500.0,0.00012973,2]
[347047005,1735482669139,-500.0,0.00012973,2]
[347047006,1735482669149,-1162.59,0.00012973,2]
[347047007,1735482669158,-1410.31,0.00012973,2]
[347047008,1735482669168,-151.0,0.00012973,2]
[347047009,1735482669178,-976.01,0.00012973,2]
[347047010,1735482669187,-500.0,0.00012973,2]
[347047011,1735482669196,-500.0,0.00012973,2]
[347047012,1735482669207,-151.0,0.00012973,2]
[347047013,1735482669216,-151.0,0.00012973,2]
[347047014,1735482669225,-151.765562,0.00012973,2]
[347047015,1735482669235,-500.0,0.00012973,2]
[347047016,1735482669245,-1328.0,0.00012973,2]
[347047017,1735482669254,-500.0,0.00012973,2]
[347047018,1735482669267,-500.0,0.00012973,2]
[347047019,1735482669278,-500.0,0.00012973,2]
[347047020,1735482669287,-4134.32,0.00012973,2]
[347047021,1735482669296,-500.0,0.00012973,2]
[347047022,1735482669306,-240.290217,0.00012973,2]
[347047023,1735482669316,-500.0,0.00012973,2]
[347047024,1735482669325,-1001.18,0.00012973,2]
[347047025,1735482669335,-585.82,0.00012973,2]
[347047026,1735482669345,-500.0,0.00012973,2]
[347047027,1735482669355,-500.0,0.00012973,2]
[347047028,1735482669365,-500.0,0.00012973,2]
[347047029,1735482669375,-500.0,0.00012973,2]
[347047030,1735482669385,-7915.22,0.00012973,2]
[347047031,1735482669394,-945.57,0.00012973,2]
[347047032,1735482669404,-1071.55,0.00012973,2]
[347047033,1735482669414,-2769.29,0.00012973,2]
[347047034,1735482669425,-500.0,0.00012973,2]
[347047035,1735482669435,-500.0,0.00012973,2]
[347047036,1735482669446,-500.0,0.00012973,2]
[347047037,1735482669457,-862.11,0.00012973,2]
[347047038,1735482669466,-151.0,0.00012973,2]
[347047039,1735482669475,-500.0,0.00012973,2]
[347047040,1735482669485,-500.0,0.00012973,2]
[347047041,1735482669496,-151.0,0.00012973,2]
[347047042,1735482669506,-2777.42,0.00012973,2]
[347047043,1735482669520,-500.0,0.00012973,2]
[347047044,1735482669531,-1192.52,0.00012973,2]
[347047045,1735482669541,-1026.32,0.00012973,2]
[347047046,1735482669551,-687.570025,0.00012973,2]
[347047047,1735482669562,-500.0,0.00012973,2]
[347047048,1735482669572,-2262.69,0.00012973,2]
[347047049,1735482669582,-5201.83,0.00012973,2]
[347047050,1735482669592,-687.570025,0.00012973,2]
[347047051,1735482669602,-15240.94,0.00012973,2]
[347047052,1735482669612,-500.0,0.00012973,2]
[347047053,1735482669623,-1252.98,0.00012973,2]
[347047054,1735482669633,-4135.45,0.00012973,2]
[347047055,1735482669642,-527.96282,0.00012973,2]
[347047056,1735482669653,-527.96282,0.00012973,2]
[347047057,1735482669663,-151.0,0.00012973,2]
[347047058,1735482669673,-514.75,0.00012973,2]
[347047059,1735482669683,-5065.05,0.00012973,2]
[347047060,1735482669693,-1866.7,0.00012973,2]
[347047061,1735482669705,-3425.4,0.00012973,2]
[347047062,1735482669715,-500.0,0.00012973,2]
[347047063,1735482669725,-4510.67,0.00012973,2]
[347047064,1735482669735,-715.36,0.00012973,2]
[347047065,1735482669746,-2442.77,0.00012973,2]
[347047066,1735482669756,-150.0,0.00012984,2]
[347047067,1735482669771,-85637.12403822,0.00012988,2]
[347047068,1735482669781,-157.13065,0.00012988,2]
[347047069,1735482669790,-157.13065,0.00012988,2]
[347047070,1735482669800,-1287.88590374,0.00012994,2]
[347047071,1735482669811,-21349.21830144,0.00012999,2]
[347047072,1735482669821,-5373.71,0.00012999,2]
[347047073,1735482669831,-5373.71,0.00012999,2]
[347047074,1735482669841,-5373.71,0.00012999,2]
[347047075,1735482669850,-5373.71,0.00012999,2]
[347047076,1735482669860,-5373.71,0.00012999,2]
[347047077,1735482669870,-5373.71,0.00012999,2]
[347047078,1735482669881,-5373.71,0.00012999,2]
[347047079,1735482669894,-5373.71,0.00012999,2]
[347047080,1735482669905,-5373.71,0.00012999,2]
[347047081,1735482669915,-5373.71,0.00012999,2]
[347047082,1735482669925,-5373.71,0.00012999,2]
[347047083,1735482669935,-5373.71,0.00012999,2]
[347047084,1735482669945,-5373.71,0.00012999,2]
[347047085,1735482669955,-5373.71,0.00012999,2]
[347047086,1735482669965,-5373.71,0.00012999,2]
[347047087,1735482669975,-5373.74500689,0.00012999,2]
[347047088,1735482669986,-3858.26113814,0.00012999,2]
[347047089,1735482669995,-3673976.16928151,0.00013,2]
[347047090,1735482670569,-1637.89530382,0.00013,2]
[347047091,1735482670581,-518.424,0.00013,2]
[347047092,1735482670593,-277.209,0.00013,2]
[347047093,1735482670605,-340.39927,0.00013,2]
[347047094,1735482670618,-473.33175016,0.00013,2]
[347047095,1735482670673,-500.0,0.00011821,2]
[347047096,1735482670683,-13915.47545891,0.00013,2]
[347047097,1735482670695,-2419.23323036,0.00013,2]
[347047098,1735482670707,-2793.02318066,0.00013,2]
[347047099,1735482670719,-18697.68755621,0.00013,2]
[347047100,1735482670731,-584.22213024,0.00013,2]
[347047101,1735482670743,-280.35339536,0.00013,2]
[347047102,1735482672039,-500.0,0.00011547,2]
[347047103,1735482672050,-1315.59,0.00011547,2]
[347047104,1735482672060,-500.0,0.00011548,2]
[347047105,1735482672070,-2106.6673921,0.00011648,2]
[347047106,1735482672081,-326.74154505,0.00011648,2]
[347047107,1735482672093,-641.97035212,0.00011648,2]
[347047108,1735482672103,-465.465853,0.00011648,2]
[347047109,1735482672114,-759.55485773,0.00011648,2]
[347047110,1735482672124,-500.0,0.00011709,2]
[347047111,1735482672134,-500.0,0.00011821,2]
[347047112,1735482672144,-1315.59,0.00011821,2]
[347047113,1735482672154,-500.0,0.00012095,2]
[347047114,1735482672164,-373.2148638,0.00012095,2]
[347047115,1735482672176,-126.7851362,0.00012095,2]
[347047116,1735482672186,-1038.12168893,0.00012095,2]
[347047117,1735482672203,-277.46831107,0.00012095,2]
[347047118,1735482672212,-500.0,0.00012369,2]
[347047119,1735482672222,-1315.59,0.00012369,2]
[347047120,1735482672231,-500.0,0.00012643,2]
[347047121,1735482672241,-1315.59,0.00012643,2]
[347047122,1735482672251,-1020.904069,0.00012698,2]
[347047123,1735482672260,-500.0,0.00012917,2]
[347047124,1735482672270,-34918.39785993,0.00013,2]
[347047125,1735482672287,-22322.03929,0.00013,2]
[347047126,1735482672298,-808.18543622,0.00013,2]
[347047127,1735482672310,-833.87987711,0.00013,2]
[347047128,1735482672321,-13636.89355177,0.00013,2]
[347047129,1735482672345,-500.0,0.00011822,2]
[347047130,1735482672354,-3432.74721704,0.00013,2]
[347047131,1735482672373,-1315.59,0.00012917,2]
[347047132,1735482672382,-718.11692799,0.00013,2]
[347047133,1735482672394,-9653.80000013,0.00013,2]
[347047134,1735482672406,-616.40024748,0.00013,2]
[347047135,1735482672424,-1092.13677785,0.00013,2]
[347047136,1735482672436,-1983.898276,0.00013,2]
[347047137,1735482672448,-4146.21838888,0.00013,2]